[Event "ROU-chT 1st League 2019"]
[Site "Mamaia"]
[Date "2019.09.21"]
[Round "1.23"]
[White "Zubac, Marius"]
[Black "Gilea, Lucian"]
[Result "1/2-1/2"]
[ECO "D10"]
[WhiteElo "2135"]
[BlackElo "2291"]
[Annotator "NA"]
[PlyCount "119"]
[EventDate "2019.09.21"]
[EventType "team-tourn"]
[EventCountry "ROU"]
[SourceTitle "playchess.com"]
[Source "ChessBase"]
[SourceQuality "1"]
[TimeControl "40/5400+30:1800+30"]

1. d4 {[%emt 0:00:00]} d5 {[%emt 0:00:00]} 2. c4 {[%emt 0:00:00]} c6 {[%emt 0:00:00]} 3. cxd5 {[%emt 0:00:12]} cxd5 {[%emt 0:00:00]} 4. Nc3 {[%emt 0:00:10]} Nf6 {[%emt 0:00:00]} 5. Nf3 {[%emt 0:00:06]} Nc6 {[%emt 0:00:37]} 6. Bf4 {[%emt 0:00:05]} a6 {[%emt 0:00:08]} 7. e3 {[%emt 0:04:20]} Bf5 {[%emt 0:03:02]} 8. Bd3 {[%emt 0:09:40]} Bxd3 {[%emt 0:00:08]} 9. Qxd3 {[%emt 0:00:02]} e6 {[%emt 0:00:28]} 10. Rc1 {[%emt 0:01:34]} Bd6 {[%emt 0:01:47]} 11. Bxd6 {[%emt 0:02:54]} Qxd6 {[%emt 0:00:02]} 12. O-O {[%emt 0:00:11]} O-O {[%emt 0:01:06]} 13. Na4 {[%emt 0:04:32]} Ne4 {[%emt 0:00:53]} 14. Nd2 {[%emt 0:02:08]} f5 {[%emt 0:07:08]} 15. Nxe4 {[%emt 0:00:07]} fxe4 {[%emt 0:00:06]} 16. Qa3 {[%emt 0:00:42]} Qxa3 {[%emt 0:08:05]} 17. bxa3 {[%emt 0:00:09]} e5 {[%emt 0:00:28]} 18. dxe5 {[%emt 0:03:14]} Nxe5 {[%emt 0:00:29]} 19. Rc5 {[%emt 0:02:26]} Rad8 {[%emt 0:15:08]} 20. Nc3 {[%emt 0:14:32]} Rc8 {[%emt 0:01:19]} 21. Nxe4 {[%emt 0:06:55]} dxe4 {[%emt 0:05:02]} 22. Rxe5 {[%emt 0:00:21]} Rc4 {[%emt 0:00:16]} 23. Rd1 {[%emt 0:07:28]} Rc2 {[%emt 0:06:27]} 24. Rxe4 {[%emt 0:01:01]} Rfxf2 {[%emt 0:01:37]} 25. Rd8+ {[%emt 0:00:13]} Rf8 {[%emt 0:00:09]} 26. Rxf8+ {[%emt 0:01:36]} Kxf8 {[%emt 0:00:02]} 27. Rf4+ {[%emt 0:01:32]} Ke7 {[%emt 0:00:15]} 28. Rb4 {[%emt 0:00:06]} b5 {[%emt 0:00:25]} 29. a4 {[%emt 0:04:24]} Rc4 {[%emt 0:05:49]} 30. Rxc4 {[%emt 0:00:46]} bxc4 {[%emt 0:00:02]} 31. Kf2 {[%emt 0:00:06]} Kd6 {[%emt 0:00:10]} 32. Ke2 {[%emt 0:00:02]} Kd5 {[%emt 0:00:46]} 33. Kd2 {[%emt 0:04:28]} Ke4 {[%emt 0:07:40]} 34. a5 {[%emt 0:06:36]} g5 {[%emt 0:02:37]} 35. Kc3 {[%emt 0:09:24]} Kxe3 {[%emt 0:06:58]} 36. Kxc4 {[%emt 0:00:09]} g4 {[%emt 0:01:17]} 37. Kc5 {[%emt 0:00:59]} Kf2 {[%emt 0:00:04]} 38. g3 {[%emt 0:00:57]} Kg2 {[%emt 0:00:05]} 39. Kb6 {[%emt 0:00:08]} Kxh2 {[%emt 0:00:02]} 40. Kxa6 {[%emt 0:00:00]} Kxg3 {[%emt 0:00:00]} 41. Kb7 {[%emt 0:00:45]} Kh2 42. a6 {[%emt 0:00:02]} g3 {[%emt 0:03:58]} 43. a7 {[%emt 0:00:08]} g2 {[%emt 0:00:01]} 44. a8=Q g1=Q 45. Qb8+ {[%emt 0:02:24]} Qg3 {[%emt 0:01:27]} 46. a4 {[%emt 0:00:34]} Qxb8+ {[%emt 0:00:19]} 47. Kxb8 {[%emt 0:00:07]} h5 {[%emt 0:00:02]} 48. a5 {[%emt 0:00:04]} h4 {[%emt 0:00:03]} 49. a6 {[%emt 0:00:02]} h3 {[%emt 0:00:02]} 50. a7 {[%emt 0:00:06]} Kg1 {[%emt 0:00:03]} 51. a8=Q h2 52. Qa7+ {[%emt 0:01:25]} Kg2 {[%emt 0:00:38]} 53. Qg7+ {[%emt 0:01:33]} Kf2 {[%emt 0:00:05]} 54. Qh6 {[%emt 0:00:11]} Kg2 {[%emt 0:00:02]} 55. Qg5+ {[%emt 0:00:08]} Kf2 {[%emt 0:00:02]} 56. Qh4+ {[%emt 0:00:07]} Kg2 {[%emt 0:00:03]} 57. Qg4+ {[%emt 0:00:15]} Kf2 {[%emt 0:00:01]} 58. Qh3 {[%emt 0:00:09]} Kg1 {[%emt 0:00:02]} 59. Qg3+ {[%emt 0:00:52]} Kh1 {[%emt 0:00:02]} 60. Ka8 1/2-1/2

[Event "ROU-chT 1st League 2019"]
[Site "Mamaia"]
[Date "2019.09.21"]
[Round "1.24"]
[White "Ghimpu, Samuel-Timotei"]
[Black "Horvat, Dan-Sebastian"]
[Result "1-0"]
[ECO "C41"]
[WhiteElo "2158"]
[BlackElo "2099"]
[Annotator "NA"]
[PlyCount "55"]
[EventDate "2019.09.21"]
[EventType "team-tourn"]
[EventCountry "ROU"]
[SourceTitle "playchess.com"]
[Source "ChessBase"]
[SourceQuality "1"]
[TimeControl "40/5400+30:1800+30"]

1. e4 {[%emt 0:00:00]} d6 {[%emt 0:01:01]} 2. d4 {[%emt 0:00:00]} Nf6 {[%emt 0:00:24]} 3. Nc3 {[%emt 0:00:00]} e5 {[%emt 0:01:00]} 4. Nf3 {[%emt 0:00:00]} Nbd7 {[%emt 0:00:34]} 5. Bc4 {[%emt 0:00:12]} Be7 {[%emt 0:02:56]} 6. O-O {[%emt 0:00:49]} O-O {[%emt 0:00:09]} 7. a4 {[%emt 0:00:06]} a6 {[%emt 0:00:53]} 8. Re1 {[%emt 0:00:17]} b6 {[%emt 0:00:32]} 9. b3 {[%emt 0:00:09]} c6 {[%emt 0:04:15]} 10. Bb2 {[%emt 0:06:56]} Qc7 {[%emt 0:02:09]} 11. Qd2 {[%emt 0:07:39]} Rb8 {[%emt 0:04:04]} 12. h3 {[%emt 0:12:24]} b5 {[%emt 0:07:11]} 13. axb5 {[%emt 0:01:38]} axb5 {[%emt 0:01:11]} 14. Bd3 {[%emt 0:01:17]} Re8 {[%emt 0:01:15]} 15. Ne2 {[%emt 0:06:15]} Bf8 {[%emt 0:07:06]} 16. Ng3 {[%emt 0:02:47]} g6 {[%emt 0:03:28]} 17. c4 {[%emt 0:02:54]} bxc4 {[%emt 0:16:55]} 18. Bxc4 {[%emt 0:00:31]} exd4 {[%emt 0:05:07]} 19. Bxd4 {[%emt 0:13:46]} d5 {[%emt 0:11:39]} 20. e5 {[%emt 0:09:01]} dxc4 {[%emt 0:18:15]} 21. exf6 {[%emt 0:00:55]} Rxe1+ {[%emt 0:00:33]} 22. Rxe1 {[%emt 0:00:02]} Ba6 {[%emt 0:02:44]} 23. Nf5 {[%emt 0:09:57]} Nc5 {[%emt 0:07:24]} 24. Nh6+ {[%emt 0:00:36]} Kh8 {[%emt 0:00:10]} 25. Re7 {[%emt 0:00:04]} Nxb3 {[%emt 0:00:35]} 26. Nxf7+ {[%emt 0:00:24]} Kg8 {[%emt 0:00:01]} 27. Nh6+ {[%emt 0:00:14]} Bxh6 {[%emt 0:01:12]} 28. Qxh6 {[%emt 0:00:08]} 1-0

[Event "ROU-chT 1st League 2019"]
[Site "Mamaia"]
[Date "2019.09.21"]
[Round "1.26"]
[White "Gonda, Laszlo"]
[Black "Morozov, Nichita"]
[Result "1/2-1/2"]
[ECO "A07"]
[WhiteElo "2541"]
[BlackElo "2394"]
[Annotator "ChessBase"]
[PlyCount "37"]
[EventDate "2019.09.21"]
[EventType "team-tourn"]
[EventCountry "ROU"]
[SourceTitle "playchess.com"]
[Source "ChessBase"]
[SourceQuality "1"]
[TimeControl "40/5400+30:1800+30"]

1. g3 {[%emt 0:00:00]} Nf6 {[%emt 0:02:35]} 2. Bg2 {[%emt 0:00:00]} d5 {[%emt 0:01:16]} 3. Nf3 {[%emt 0:00:00]} c6 {[%emt 0:00:23]} 4. O-O {[%emt 0:00:00]} Bg4 {[%emt 0:01:02]} 5. c4 {[%emt 0:01:50]} e6 {[%emt 0:00:07]} 6. d3 {[%emt 0:00:11]} Be7 {[%emt 0:00:35]} 7. Qb3 {[%emt 0:04:15]} Qb6 {[%emt 0:02:35]} 8. Be3 {[%emt 0:03:47]} Qxb3 {[%emt 0:04:30]} 9. axb3 {[%emt 0:00:02]} a6 {[%emt 0:01:11]} 10. h3 {[%emt 0:00:51]} Bh5 {[%emt 0:04:34]} 11. g4 {[%emt 0:04:00]} Bg6 {[%emt 0:00:06]} 12. Ne5 {[%emt 0:00:07]} Nbd7 {[%emt 0:04:05]} 13. Nxg6 {[%emt 0:01:33]} hxg6 {[%emt 0:00:06]} 14. Nc3 {[%emt 0:00:15]} Bd6 {[%emt 0:04:40]} 15. f4 {[%emt 0:10:19]} Ng8 {[%emt 0:03:48]} 16. Na4 {[%emt 0:05:54]} Ne7 {[%emt 0:03:07]} 17. Nb6 {[%emt 0:07:59]} Rd8 {[%emt 0:03:41]} 18. Nxd7 {[%emt 0:06:58]} Rxd7 {[%emt 0:00:49]} 19. Bd4 {[%emt 0:07:28]} 1/2-1/2

[Event "ROU-chT 1st League 2019"]
[Site "Mamaia"]
[Date "2019.09.21"]
[Round "1.27"]
[White "Ionescu, Constantin"]
[Black "Grigore, George-Gabriel"]
[Result "1-0"]
[ECO "A05"]
[WhiteElo "2426"]
[BlackElo "2491"]
[Annotator "ChessBase"]
[PlyCount "111"]
[EventDate "2019.09.21"]
[EventType "team-tourn"]
[EventCountry "ROU"]
[SourceTitle "playchess.com"]
[Source "ChessBase"]
[SourceQuality "1"]
[TimeControl "40/5400+30:1800+30"]

1. Nf3 {[%emt 0:00:00]} Nf6 {[%emt 0:00:01]} 2. c4 {[%emt 0:00:00]} g6 {[%emt 0:00:17]} 3. b3 {[%emt 0:00:00]} Bg7 {[%emt 0:00:17]} 4. Bb2 {[%emt 0:00:03]} d6 {[%emt 0:00:48]} 5. e3 {[%emt 0:00:32]} O-O {[%emt 0:01:51]} 6. Be2 {[%emt 0:02:33]} e5 {[%emt 0:01:12]} 7. O-O {[%emt 0:00:48]} Re8 {[%emt 0:04:17]} 8. Nc3 {[%emt 0:00:37]} c6 {[%emt 0:02:33]} 9. Na4 {[%emt 0:05:35]} Nbd7 {[%emt 0:04:54]} 10. Rc1 {[%emt 0:03:49]} a6 {[%emt 0:05:10]} 11. c5 {[%emt 0:07:32]} e4 {[%emt 0:08:33]} 12. Ne1 {[%emt 0:00:23]} Nxc5 {[%emt 0:01:58]} 13. Nxc5 {[%emt 0:00:11]} dxc5 {[%emt 0:00:05]} 14. Rxc5 {[%emt 0:00:15]} Bf5 {[%emt 0:15:45]} 15. Rc2 {[%emt 0:01:08]} h5 {[%emt 0:05:29]} 16. d3 {[%emt 0:05:45]} Qd6 {[%emt 0:05:18]} 17. dxe4 {[%emt 0:02:04]} Qxd1 {[%emt 0:00:42]} 18. Bxd1 {[%emt 0:00:08]} Bxe4 {[%emt 0:00:14]} 19. Re2 {[%emt 0:00:17]} Nd5 {[%emt 0:10:19]} 20. Bxg7 {[%emt 0:08:50]} Kxg7 {[%emt 0:00:11]} 21. Rb2 {[%emt 0:00:05]} Rad8 {[%emt 0:03:30]} 22. Bc2 {[%emt 0:01:22]} f5 {[%emt 0:03:29]} 23. Bxe4 {[%emt 0:02:12]} fxe4 {[%emt 0:00:10]} 24. Nc2 {[%emt 0:00:15]} Nc3 {[%emt 0:04:33]} 25. Nd4 {[%emt 0:00:34]} Nb5 {[%emt 0:01:25]} 26. Ne2 {[%emt 0:00:40]} Rd3 {[%emt 0:01:06]} 27. h4 {[%emt 0:02:05]} Re7 {[%emt 0:04:11]} 28. Nf4 {[%emt 0:02:09]} Rd6 {[%emt 0:00:36]} 29. Rc1 {[%emt 0:00:36]} Re5 {[%emt 0:01:22]} 30. a4 {[%emt 0:02:51]} Nc7 {[%emt 0:00:08]} 31. b4 {[%emt 0:00:21]} Kf6 {[%emt 0:04:35]} 32. Kf1 {[%emt 0:01:51]} Ne6 {[%emt 0:00:42]} 33. g3 {[%emt 0:03:29]} Nc7 {[%emt 0:04:54]} 34. Ke1 {[%emt 0:00:57]} Re7 {[%emt 0:01:27]} 35. Rc4 {[%emt 0:03:11]} Re5 {[%emt 0:01:57]} 36. Ne2 {[%emt 0:06:16]} Kf5 {[%emt 0:01:42]} 37. Nd4+ {[%emt 0:00:41]} Kf6 {[%emt 0:00:06]} 38. Nb3 {[%emt 0:01:27]} Ne6 {[%emt 0:01:36]} 39. Nd2 {[%emt 0:03:45]} Kf5 {[%emt 0:00:08]} 40. Rc1 {[%emt 0:00:00]} Rd7 {[%emt 0:00:00]} 41. Nc4 {[%emt 0:00:35]} Rd3 {[%emt 0:03:29]} 42. Nxe5 {[%emt 0:00:16]} Kxe5 {[%emt 0:00:06]} 43. b5 {[%emt 0:00:22]} axb5 {[%emt 0:00:11]} 44. axb5 {[%emt 0:00:07]} c5 {[%emt 0:00:12]} 45. Ke2 {[%emt 0:01:51]} b6 {[%emt 0:01:05]} 46. f3 {[%emt 0:02:24]} Ra3 {[%emt 0:01:53]} 47. f4+ {[%emt 0:01:32]} Kf6 {[%emt 0:06:11]} 48. Rc4 {[%emt 0:01:36]} Ng7 {[%emt 0:02:20]} 49. Rxe4 {[%emt 0:03:14]} Nf5 {[%emt 0:00:14]} 50. Re8 {[%emt 0:02:12]} Kf7 {[%emt 0:06:52]} 51. Rb8 {[%emt 0:00:30]} Rxe3+ {[%emt 0:00:17]} 52. Kf2 {[%emt 0:00:12]} Re6 {[%emt 0:00:13]} 53. Ra2 {[%emt 0:00:36]} Rd6 {[%emt 0:01:38]} 54. Ra6 {[%emt 0:01:30]} Rd2+ {[%emt 0:01:12]} 55. Ke1 {[%emt 0:00:09]} Rb2 {[%emt 0:00:22]} 56. Raxb6 {[%emt 0:00:12]} 1-0

[Event "ROU-chT 1st League 2019"]
[Site "Mamaia"]
[Date "2019.09.21"]
[Round "1.28"]
[White "Manea, Alexandru"]
[Black "Cosma, Ioan"]
[Result "1/2-1/2"]
[ECO "B35"]
[WhiteElo "2305"]
[BlackElo "2394"]
[Annotator "NA"]
[PlyCount "158"]
[EventDate "2019.09.21"]
[EventType "team-tourn"]
[EventCountry "ROU"]
[SourceTitle "playchess.com"]
[Source "ChessBase"]
[SourceQuality "1"]
[TimeControl "40/5400+30:1800+30"]

1. e4 c5 2. Nf3 Nc6 3. d4 cxd4 4. Nxd4 g6 5. Nc3 Bg7 6. Be3 Nf6 7. Bc4 {[%emt 0:08:25]} Qa5 {[%emt 0:07:55]} 8. O-O {[%emt 0:02:36]} O-O {[%emt 0:00:20]} 9. Nb3 {[%emt 0:00:08]} Qc7 {[%emt 0:00:40]} 10. Be2 {[%emt 0:00:11]} a6 {[%emt 0:01:46]} 11. Re1 {[%emt 0:11:04]} d6 {[%emt 0:07:12]} 12. Nd5 {[%emt 0:02:50]} Nxd5 {[%emt 0:01:29]} 13. exd5 {[%emt 0:00:08]} Na5 {[%emt 0:03:15]} 14. Nxa5 {[%emt 0:13:29]} Qxa5 {[%emt 0:00:07]} 15. c3 {[%emt 0:00:02]} Bd7 {[%emt 0:10:33]} 16. Bf3 {[%emt 0:01:47]} Rfe8 {[%emt 0:07:42]} 17. Qd2 {[%emt 0:00:37]} Qc7 {[%emt 0:04:22]} 18. Bd4 {[%emt 0:02:37]} Bxd4 {[%emt 0:04:28]} 19. Qxd4 {[%emt 0:00:15]} Rac8 {[%emt 0:00:30]} 20. Qh4 {[%emt 0:09:41]} e5 {[%emt 0:06:05]} 21. dxe6 {[%emt 0:02:45]} Bxe6 {[%emt 0:00:45]} 22. a3 {[%emt 0:01:27]} a5 {[%emt 0:03:55]} 23. Qd4 {[%emt 0:01:20]} Qc5 {[%emt 0:02:45]} 24. Red1 {[%emt 0:04:13]} Red8 {[%emt 0:09:13]} 25. Rd2 {[%emt 0:00:43]} b6 {[%emt 0:00:15]} 26. h4 {[%emt 0:00:31]} Qxd4 {[%emt 0:01:13]} 27. Rxd4 {[%emt 0:00:07]} Rc4 {[%emt 0:00:48]} 28. Rad1 {[%emt 0:01:12]} Rxd4 {[%emt 0:00:23]} 29. Rxd4 {[%emt 0:00:00]} Kf8 {[%emt 0:00:30]} 30. Kf1 {[%emt 0:00:15]} Ke7 {[%emt 0:00:19]} 31. Ke2 {[%emt 0:00:05]} Rc8 {[%emt 0:01:23]} 32. Ke3 {[%emt 0:02:02]} h5 {[%emt 0:00:23]} 33. Kd2 {[%emt 0:00:46]} Rc7 {[%emt 0:02:54]} 34. Be4 {[%emt 0:01:37]} Rc5 {[%emt 0:02:46]} 35. Ke3 {[%emt 0:02:39]} Rc7 {[%emt 0:00:12]} 36. Kf4 {[%emt 0:00:10]} Rc5 {[%emt 0:06:09]} 37. Ke3 {[%emt 0:02:47]} Re5 {[%emt 0:01:00]} 38. Kd2 {[%emt 0:00:40]} Rc5 {[%emt 0:00:21]} 39. Kd3 {[%emt 0:00:00]} Re5 {[%emt 0:00:00]} 40. Kd2 {[%emt 0:00:00]} Rc5 {[%emt 0:00:00]} 41. Bf3 {[%emt 0:05:00]} Rc7 {[%emt 0:07:33]} 42. Bd5 {[%emt 0:00:13]} Rc5 {[%emt 0:02:43]} 43. Be4 {[%emt 0:02:32]} Rc7 {[%emt 0:00:18]} 44. Kc2 {[%emt 0:00:26]} Ra7 {[%emt 0:04:23]} 45. Bd5 {[%emt 0:04:47]} Rc7 {[%emt 0:00:49]} 46. Be4 {[%emt 0:02:02]} Ra7 {[%emt 0:00:34]} 47. Bf3 {[%emt 0:00:21]} Rc7 {[%emt 0:00:21]} 48. Be2 {[%emt 0:00:41]} Rc5 {[%emt 0:03:51]} 49. Bf3 {[%emt 0:03:48]} Bf5+ {[%emt 0:01:05]} 50. Be4 {[%emt 0:00:32]} Re5 {[%emt 0:00:36]} 51. Bxf5 {[%emt 0:00:12]} Rxf5 {[%emt 0:00:07]} 52. f3 {[%emt 0:00:12]} Kd7 {[%emt 0:00:16]} 53. Kd3 {[%emt 0:02:35]} g5 {[%emt 0:01:09]} 54. Ke3 {[%emt 0:07:15]} Re5+ {[%emt 0:03:36]} 55. Kf2 {[%emt 0:12:28]} f6 {[%emt 0:00:38]} 56. f4 {[%emt 0:04:13]} gxf4 {[%emt 0:02:17]} 57. Rxf4 {[%emt 0:01:29]} f5 {[%emt 0:00:39]} 58. Kf3 {[%emt 0:04:15]} Ke6 {[%emt 0:00:41]} 59. Rc4 {[%emt 0:00:12]} Rb5 {[%emt 0:06:01]} 60. b4 {[%emt 0:00:23]} axb4 {[%emt 0:00:03]} 61. axb4 {[%emt 0:01:32]} Rd5 {[%emt 0:00:41]} 62. Rc8 {[%emt 0:03:23]} Rd3+ {[%emt 0:02:18]} 63. Kf4 {[%emt 0:00:11]} b5 {[%emt 0:00:49]} 64. Re8+ {[%emt 0:03:16]} Kd5 {[%emt 0:00:25]} 65. Rf8 {[%emt 0:00:04]} Rxc3 {[%emt 0:01:48]} 66. Rxf5+ {[%emt 0:00:01]} Ke6 {[%emt 0:00:31]} 67. Rxb5 {[%emt 0:01:34]} Rc4+ {[%emt 0:00:04]} 68. Kg5 {[%emt 0:00:07]} Rg4+ {[%emt 0:00:37]} 69. Kxh5 {[%emt 0:00:02]} Rxg2 {[%emt 0:00:06]} 70. Rg5 {[%emt 0:06:09]} Rb2 {[%emt 0:00:24]} 71. b5 {[%emt 0:00:52]} Rb4 {[%emt 0:01:38]} 72. Rg6+ {[%emt 0:00:12]} Kf7 {[%emt 0:00:36]} 73. Rxd6 {[%emt 0:00:24]} Rxb5+ {[%emt 0:00:08]} 74. Kh6 {[%emt 0:00:01]} Rb8 {[%emt 0:02:40]} 75. Kh7 {[%emt 0:00:43]} Rb5 {[%emt 0:02:49]} 76. Rd7+ {[%emt 0:00:12]} Kf8 {[%emt 0:01:48]} 77. Rd4 {[%emt 0:00:10]} Rf5 {[%emt 0:01:32]} 78. Kg6 {[%emt 0:00:16]} Rf1 {[%emt 0:00:27]} 79. h5 {[%emt 0:00:05]} Kg8 {[%emt 0:00:11]} 1/2-1/2

[Event "ROU-chT 1st League 2019"]
[Site "Mamaia"]
[Date "2019.09.21"]
[Round "1.29"]
[White "Itkis, Boris"]
[Black "Szabo, Attila"]
[Result "1-0"]
[ECO "A40"]
[WhiteElo "2323"]
[BlackElo "2239"]
[Annotator "NA"]
[PlyCount "61"]
[EventDate "2019.09.21"]
[EventType "team-tourn"]
[EventCountry "ROU"]
[SourceTitle "playchess.com"]
[Source "ChessBase"]
[SourceQuality "1"]
[TimeControl "40/5400+30:1800+30"]

1. d4 {[%emt 0:00:00]} Nf6 {[%emt 0:00:11]} 2. c4 {[%emt 0:00:00]} e6 {[%emt 0:00:56]} 3. g3 {[%emt 0:00:00]} c5 {[%emt 0:01:08]} 4. Nf3 {[%emt 0:00:18]} b6 {[%emt 0:07:16]} 5. d5 {[%emt 0:02:49]} exd5 {[%emt 0:03:33]} 6. cxd5 {[%emt 0:00:05]} d6 {[%emt 0:00:08]} 7. Nc3 {[%emt 0:00:05]} g6 {[%emt 0:00:35]} 8. Bg2 {[%emt 0:00:04]} Bg7 {[%emt 0:00:05]} 9. O-O {[%emt 0:00:05]} O-O {[%emt 0:00:05]} 10. Bf4 {[%emt 0:03:27]} a6 {[%emt 0:01:17]} 11. a4 {[%emt 0:00:12]} Re8 {[%emt 0:07:35]} 12. h3 {[%emt 0:14:53]} Nh5 {[%emt 0:10:04]} 13. Bg5 {[%emt 0:02:03]} Qc7 {[%emt 0:04:48]} 14. Rc1 {[%emt 0:00:41]} Nd7 {[%emt 0:01:04]} 15. Re1 {[%emt 0:04:43]} Ne5 {[%emt 0:08:44]} 16. Nxe5 {[%emt 0:01:08]} Rxe5 {[%emt 0:07:40]} 17. Qd2 {[%emt 0:02:55]} Re8 {[%emt 0:07:19]} 18. e4 {[%emt 0:02:16]} Bb7 {[%emt 0:12:34]} 19. b4 {[%emt 0:14:35]} Rac8 {[%emt 0:13:48]} 20. g4 {[%emt 0:03:40]} Nf6 {[%emt 0:00:09]} 21. bxc5 {[%emt 0:04:49]} bxc5 {[%emt 0:00:16]} 22. e5 {[%emt 0:13:59]} Rxe5 {[%emt 0:00:32]} 23. Rxe5 {[%emt 0:00:11]} dxe5 {[%emt 0:00:02]} 24. Bxf6 {[%emt 0:00:39]} Bxf6 {[%emt 0:00:13]} 25. Ne4 {[%emt 0:00:50]} Bd8 {[%emt 0:04:32]} 26. Rxc5 {[%emt 0:02:40]} Qb6 {[%emt 0:02:46]} 27. Rxc8 {[%emt 0:05:28]} Bxc8 {[%emt 0:00:02]} 28. Qc3 {[%emt 0:00:34]} Qb8 {[%emt 0:04:14]} 29. d6 {[%emt 0:00:43]} f6 {[%emt 0:02:07]} 30. Qc6 {[%emt 0:02:08]} Be6 {[%emt 0:00:44]} 31. Qe8+ {[%emt 0:00:07]} 1-0

[Event "ROU-chT 1st League 2019"]
[Site "Mamaia"]
[Date "2019.09.21"]
[Round "1.30"]
[White "Vasiesiu, Victor"]
[Black "Ileana, George"]
[Result "0-1"]
[ECO "B23"]
[WhiteElo "2251"]
[BlackElo "2349"]
[Annotator "NA"]
[PlyCount "131"]
[EventDate "2019.09.21"]
[EventType "team-tourn"]
[EventCountry "ROU"]
[SourceTitle "playchess.com"]
[Source "ChessBase"]
[SourceQuality "1"]
[TimeControl "40/5400+30:1800+30"]

1. e4 c5 2. Nc3 d6 3. f4 g6 4. Nf3 Bg7 5. Bb5+ Bd7 6. Bc4 Nc6 7. O-O e6 {[%emt 0:02:04]} 8. d3 {[%emt 0:00:43]} Nge7 {[%emt 0:00:29]} 9. f5 {[%emt 0:00:03]} gxf5 {[%emt 0:09:53]} 10. Ng5 {[%emt 0:00:41]} Ne5 {[%emt 0:06:09]} 11. Qh5 {[%emt 0:03:58]} N7g6 {[%emt 0:03:44]} 12. exf5 {[%emt 0:06:35]} exf5 {[%emt 0:01:58]} 13. Bd5 {[%emt 0:13:09]} Qc7 {[%emt 0:04:05]} 14. Bd2 {[%emt 0:05:51]} O-O-O {[%emt 0:11:28]} 15. Nxf7 {[%emt 0:01:36]} Nxf7 {[%emt 0:00:22]} 16. Bxf7 {[%emt 0:00:09]} Rdf8 {[%emt 0:00:35]} 17. Bb3 {[%emt 0:09:53]} Kb8 {[%emt 0:02:54]} 18. a4 {[%emt 0:02:58]} Bc6 {[%emt 0:01:22]} 19. Nd5 {[%emt 0:03:23]} Bd4+ {[%emt 0:02:55]} 20. Be3 {[%emt 0:09:33]} Qg7 {[%emt 0:04:33]} 21. c3 {[%emt 0:00:26]} Nf4 {[%emt 0:02:24]} 22. Rxf4 {[%emt 0:03:40]} Bxd5 {[%emt 0:00:13]} 23. Bxd5 {[%emt 0:00:05]} Bxe3+ {[%emt 0:00:08]} 24. Rf2 {[%emt 0:00:04]} Qg4 {[%emt 0:04:49]} 25. Bf3 {[%emt 0:00:03]} Qxh5 {[%emt 0:01:41]} 26. Bxh5 {[%emt 0:00:05]} f4 {[%emt 0:01:19]} 27. Kf1 {[%emt 0:00:21]} Bxf2 {[%emt 0:00:07]} 28. Kxf2 {[%emt 0:00:02]} Rf5 {[%emt 0:00:09]} 29. Bf3 {[%emt 0:02:30]} Re5 {[%emt 0:01:18]} 30. Rd1 {[%emt 0:01:22]} Kc7 {[%emt 0:01:56]} 31. d4 {[%emt 0:01:30]} Re7 {[%emt 0:00:09]} 32. dxc5 {[%emt 0:01:27]} dxc5 {[%emt 0:00:07]} 33. Rd5 {[%emt 0:00:10]} b6 {[%emt 0:00:07]} 34. Rf5 {[%emt 0:00:59]} Rd8 {[%emt 0:01:24]} 35. Bd5 {[%emt 0:00:05]} c4 {[%emt 0:02:08]} 36. Kf3 {[%emt 0:01:39]} Re3+ {[%emt 0:00:44]} 37. Kxf4 {[%emt 0:00:15]} Re2 {[%emt 0:01:30]} 38. Rh5 {[%emt 0:12:49]} Rd7 {[%emt 0:02:05]} 39. Bxc4 {[%emt 0:01:25]} Rxg2 {[%emt 0:01:53]} 40. b4 {[%emt 0:00:00]} Rc2 {[%emt 0:00:00]} 41. Rh3 {[%emt 0:03:06]} Kd8 {[%emt 0:10:54]} 42. Bg8 {[%emt 0:04:14]} Rc7 {[%emt 0:02:44]} 43. Bxh7 {[%emt 0:10:58]} R2xc3 {[%emt 0:00:34]} 44. Bd3 {[%emt 0:00:40]} Rf7+ {[%emt 0:05:03]} 45. Ke5 {[%emt 0:02:28]} Kc7 {[%emt 0:00:30]} 46. a5 {[%emt 0:07:41]} b5 {[%emt 0:00:41]} 47. Rg3 {[%emt 0:06:37]} a6 {[%emt 0:03:54]} 48. Bf5 {[%emt 0:03:25]} Rc6 {[%emt 0:01:34]} 49. Be6 {[%emt 0:05:43]} Rh7 {[%emt 0:01:49]} 50. h3 {[%emt 0:00:59]} Rc1 {[%emt 0:02:44]} 51. Re3 {[%emt 0:03:34]} Rh4 {[%emt 0:01:20]} 52. Bg4 {[%emt 0:00:40]} Rc4 {[%emt 0:00:51]} 53. Kd5 {[%emt 0:02:12]} Rh6 {[%emt 0:01:55]} 54. Re7+ {[%emt 0:01:41]} Kd8 {[%emt 0:00:16]} 55. Rd7+ {[%emt 0:01:46]} Ke8 {[%emt 0:00:17]} 56. Ra7 {[%emt 0:00:04]} Rxb4 {[%emt 0:00:45]} 57. Be6 {[%emt 0:00:13]} Rb2 {[%emt 0:03:52]} 58. Rxa6 {[%emt 0:00:32]} Rh5+ {[%emt 0:01:42]} 59. Kd4 {[%emt 0:01:36]} Rb4+ {[%emt 0:05:37]} 60. Kc3 {[%emt 0:00:14]} Ra4 {[%emt 0:00:21]} 61. Ra7 {[%emt 0:01:37]} Re5 {[%emt 0:00:09]} 62. Bd7+ {[%emt 0:00:53]} Kd8 {[%emt 0:01:19]} 63. Rb7 {[%emt 0:01:41]} Re3+ {[%emt 0:01:54]} 64. Kd2 {[%emt 0:00:19]} Re7 {[%emt 0:00:23]} 65. Rxb5 {[%emt 0:01:33]} Rxd7+ {[%emt 0:00:06]} 66. Kc2 {[%emt 0:00:23]} 0-1